[Event "Titled Tuesday Blitz November 29 Late 2022"]
[White "Urazayev, Arystanbek"]
[Black "Risteski, Emil"]
[WhiteFideId "13709810"]
[BlackFideId "15005267"]
[WhiteElo "2441"]
[BlackElo "2251"]
[Result "0-1"]
[Round "09"]
[TimeControl "180+1"]
[Date "2022.11.30"]
[WhiteClock "0:00:08"]
[BlackClock "0:00:17"]

1. c4 {[%clk 0:02:56]}  f5 {[%clk 0:02:57]} 2. Nf3 {[%clk 0:02:49]}  Nf6 {[%clk 0:02:58]} 3. g3 {[%clk 0:02:49]}  e6 {[%clk 0:02:56]} 4. Bg2 {[%clk 0:02:48]}  Be7 {[%clk 0:02:55]} 5. O-O {[%clk 0:02:48]}  O-O {[%clk 0:02:56]} 6. b3 {[%clk 0:02:47]}  d6 {[%clk 0:02:53]} 7. Bb2 {[%clk 0:02:47]}  e5 {[%clk 0:02:52]} 8. d3 {[%clk 0:02:44]}  Qe8 {[%clk 0:02:46]} 9. c5 {[%clk 0:02:39]}  Nc6 {[%clk 0:02:39]} 10. cxd6 {[%clk 0:02:39]}  cxd6 {[%clk 0:02:40]} 11. Nc3 {[%clk 0:02:40]}  Qh5 {[%clk 0:02:34]} 12. e3 {[%clk 0:02:35]}  f4 {[%clk 0:02:33]} 13. exf4 {[%clk 0:02:19]}  Bg4 {[%clk 0:02:28]} 14. h3 {[%clk 0:01:54]}  Bxh3 {[%clk 0:02:27]} 15. Bxh3 {[%clk 0:01:54]}  Qxh3 {[%clk 0:02:27]} 16. Ng5 {[%clk 0:01:55]}  Qf5 {[%clk 0:02:14]} 17. Bc1 {[%clk 0:01:38]}  Ng4 {[%clk 0:01:39]} 18. Nd5 {[%clk 0:01:15]}  exf4 {[%clk 0:01:03]} 19. Nxe7+ {[%clk 0:00:59]}  Nxe7 {[%clk 0:01:04]} 20. Bxf4 {[%clk 0:00:56]}  Ng6 {[%clk 0:01:00]} 21. Qf3 {[%clk 0:00:40]}  Qxg5 {[%clk 0:00:55]} 22. Bxg5 {[%clk 0:00:30]}  Rxf3 {[%clk 0:00:56]} 23. Rad1 {[%clk 0:00:29]}  Raf8 {[%clk 0:00:54]} 24. Rd2 {[%clk 0:00:29]}  h6 {[%clk 0:00:48]} 25. Bh4 {[%clk 0:00:27]}  Nxh4 {[%clk 0:00:47]} 26. gxh4 {[%clk 0:00:27]}  Ne5 {[%clk 0:00:43]} 27. d4 {[%clk 0:00:26]}  Ng6 {[%clk 0:00:39]} 28. h5 {[%clk 0:00:16]}  Nh4 {[%clk 0:00:36]} 29. Rc1 {[%clk 0:00:16]}  Rh3 {[%clk 0:00:27]} 30. Rc7 {[%clk 0:00:16]}  Nf3+ {[%clk 0:00:19]} 31. Kg2 {[%clk 0:00:16]}  Rxh5 {[%clk 0:00:18]} 32. Rd1 {[%clk 0:00:16]}  Rg5+ {[%clk 0:00:18]} 33. Kf1 {[%clk 0:00:08]}  Re8 {[%clk 0:00:17]} 0-1


[Site "https://www.chess.com"]

[Event "Titled Tuesday Blitz November 29 Late 2022"]
[White "Vlassov, Nikolai"]
[Black "Di Berardino, Diego Rafael"]
[WhiteFideId "4103360"]
[BlackFideId "2105446"]
[WhiteElo "2324"]
[BlackElo "2442"]
[Result "1-0"]
[Round "09"]
[TimeControl "180+1"]
[Date "2022.11.30"]
[WhiteClock "0:01:32"]
[BlackClock "0:00:17"]

1. e4 {[%clk 0:03:00]}  c5 {[%clk 0:02:59]} 2. c3 {[%clk 0:03:00]}  d5 {[%clk 0:02:57]} 3. exd5 {[%clk 0:03:00]}  Qxd5 {[%clk 0:02:58]} 4. d4 {[%clk 0:03:01]}  Nf6 {[%clk 0:02:57]} 5. Nf3 {[%clk 0:03:00]}  Bg4 {[%clk 0:02:57]} 6. dxc5 {[%clk 0:03:00]}  Qxc5 {[%clk 0:02:54]} 7. h3 {[%clk 0:02:58]}  Bh5 {[%clk 0:02:47]} 8. Be3 {[%clk 0:02:58]}  Qc7 {[%clk 0:02:44]} 9. Na3 {[%clk 0:02:56]}  a6 {[%clk 0:02:34]} 10. Qa4+ {[%clk 0:02:49]}  Nbd7 {[%clk 0:02:34]} 11. g4 {[%clk 0:02:49]}  Bg6 {[%clk 0:02:34]} 12. Bf4 {[%clk 0:02:49]}  Qc8 {[%clk 0:02:26]} 13. Ne5 {[%clk 0:02:49]}  e6 {[%clk 0:02:21]} 14. g5 {[%clk 0:02:36]}  Nd5 {[%clk 0:02:16]} 15. Nxd7 {[%clk 0:02:34]}  Qxd7 {[%clk 0:02:02]} 16. Bb5 {[%clk 0:02:33]}  axb5 {[%clk 0:01:53]} 17. Qxa8+ {[%clk 0:02:32]}  Qd8 {[%clk 0:01:42]} 18. Qxd8+ {[%clk 0:02:19]}  Kxd8 {[%clk 0:01:43]} 19. O-O-O {[%clk 0:02:15]}  Bxa3 {[%clk 0:01:42]} 20. bxa3 {[%clk 0:02:15]}  Kc8 {[%clk 0:01:28]} 21. Be5 {[%clk 0:02:07]}  Rg8 {[%clk 0:01:19]} 22. Kb2 {[%clk 0:02:06]}  Nb6 {[%clk 0:01:14]} 23. Bd4 {[%clk 0:01:58]}  Nc4+ {[%clk 0:01:13]} 24. Kb3 {[%clk 0:01:57]}  Kc7 {[%clk 0:01:11]} 25. a4 {[%clk 0:01:55]}  Na5+ {[%clk 0:00:53]} 26. Kb4 {[%clk 0:01:54]}  Nc6+ {[%clk 0:00:53]} 27. Kxb5 {[%clk 0:01:54]}  Ra8 {[%clk 0:00:44]} 28. Bb6+ {[%clk 0:01:53]}  Kc8 {[%clk 0:00:45]} 29. Rd6 {[%clk 0:01:49]}  Bc2 {[%clk 0:00:42]} 30. a5 {[%clk 0:01:47]}  Ra6 {[%clk 0:00:31]} 31. Rc1 {[%clk 0:01:39]}  Be4 {[%clk 0:00:23]} 32. Rcd1 {[%clk 0:01:38]}  Bd5 {[%clk 0:00:22]} 33. c4 {[%clk 0:01:36]}  Na7+ {[%clk 0:00:17]} 34. Kc5 {[%clk 0:01:32]} 1-0


[Site "https://www.chess.com"]

[Event "Titled Tuesday Blitz November 29 Late 2022"]
[White "Wieczorek, Zbigniew"]
[Black "Marcolino, Daniel Mattos"]
[WhiteFideId "1102001"]
[BlackFideId "2106841"]
[WhiteElo "2302"]
[BlackElo "2131"]
[Result "1-0"]
[Round "09"]
[TimeControl "180+1"]
[Date "2022.11.30"]
[WhiteClock "0:00:07"]
[BlackClock "0:00:03"]

1. Nf3 {[%clk 0:03:00]}  d5 {[%clk 0:02:56]} 2. g3 {[%clk 0:03:00]}  Nf6 {[%clk 0:02:57]} 3. Bg2 {[%clk 0:03:00]}  e6 {[%clk 0:02:57]} 4. d3 {[%clk 0:02:59]}  b6 {[%clk 0:02:57]} 5. Nbd2 {[%clk 0:02:59]}  Bb7 {[%clk 0:02:58]} 6. O-O {[%clk 0:02:57]}  Be7 {[%clk 0:02:58]} 7. e4 {[%clk 0:02:57]}  dxe4 {[%clk 0:02:57]} 8. Ng5 {[%clk 0:02:57]}  O-O {[%clk 0:02:53]} 9. Ndxe4 {[%clk 0:02:57]}  Nxe4 {[%clk 0:02:52]} 10. Nxe4 {[%clk 0:02:57]}  Qc8 {[%clk 0:02:51]} 11. Qh5 {[%clk 0:02:49]}  Nd7 {[%clk 0:02:31]} 12. Bg5 {[%clk 0:02:40]}  Bxg5 {[%clk 0:02:27]} 13. Qxg5 {[%clk 0:02:36]}  Rb8 {[%clk 0:02:08]} 14. a4 {[%clk 0:02:29]}  a5 {[%clk 0:02:06]} 15. h4 {[%clk 0:02:23]}  Qd8 {[%clk 0:02:06]} 16. Rfe1 {[%clk 0:02:14]}  Qxg5 {[%clk 0:02:03]} 17. hxg5 {[%clk 0:02:13]}  Rfd8 {[%clk 0:01:51]} 18. f4 {[%clk 0:02:12]}  Nf8 {[%clk 0:01:48]} 19. Kf2 {[%clk 0:02:11]}  Rd4 {[%clk 0:01:31]} 20. b3 {[%clk 0:02:01]}  Nd7 {[%clk 0:01:07]} 21. Bf3 {[%clk 0:01:55]}  Nf8 {[%clk 0:00:52]} 22. Re2 {[%clk 0:01:46]}  Ba8 {[%clk 0:00:52]} 23. Nd2 {[%clk 0:01:36]}  Bxf3 {[%clk 0:00:49]} 24. Nxf3 {[%clk 0:01:34]}  Rd6 {[%clk 0:00:41]} 25. Ne5 {[%clk 0:01:31]}  Ng6 {[%clk 0:00:37]} 26. Nc4 {[%clk 0:01:29]}  Rd7 {[%clk 0:00:34]} 27. Rae1 {[%clk 0:01:29]}  Ne7 {[%clk 0:00:29]} 28. Kf3 {[%clk 0:01:25]}  Nf5 {[%clk 0:00:28]} 29. Ne5 {[%clk 0:01:16]}  Rd6 {[%clk 0:00:20]} 30. Kf2 {[%clk 0:01:10]}  Rbd8 {[%clk 0:00:20]} 31. Re4 {[%clk 0:01:02]}  h6 {[%clk 0:00:19]} 32. gxh6 {[%clk 0:00:57]}  Nxh6 {[%clk 0:00:20]} 33. Nc4 {[%clk 0:00:50]}  Rd4 {[%clk 0:00:18]} 34. Rxd4 {[%clk 0:00:44]}  Rxd4 {[%clk 0:00:19]} 35. Kf3 {[%clk 0:00:44]}  Nf5 {[%clk 0:00:19]} 36. Re4 {[%clk 0:00:41]}  Rxe4 {[%clk 0:00:17]} 37. dxe4 {[%clk 0:00:33]}  Ne7 {[%clk 0:00:15]} 38. Ne5 {[%clk 0:00:27]}  Kf8 {[%clk 0:00:14]} 39. Ke3 {[%clk 0:00:23]}  f6 {[%clk 0:00:14]} 40. Nd3 {[%clk 0:00:20]}  Nc6 {[%clk 0:00:14]} 41. c3 {[%clk 0:00:19]}  Ke7 {[%clk 0:00:15]} 42. b4 {[%clk 0:00:18]}  Kd6 {[%clk 0:00:11]} 43. b5 {[%clk 0:00:18]}  Nb8 {[%clk 0:00:09]} 44. c4 {[%clk 0:00:16]}  Nd7 {[%clk 0:00:08]} 45. Kd4 {[%clk 0:00:15]}  g5 {[%clk 0:00:05]} 46. e5+ {[%clk 0:00:15]}  fxe5+ {[%clk 0:00:04]} 47. fxe5+ {[%clk 0:00:16]}  Ke7 {[%clk 0:00:04]} 48. c5 {[%clk 0:00:15]}  Kf7 {[%clk 0:00:03]} 49. c6 {[%clk 0:00:14]}  Nf8 {[%clk 0:00:03]} 50. Nf2 {[%clk 0:00:10]}  Kg6 {[%clk 0:00:03]} 51. Ne4 {[%clk 0:00:10]}  Kf5 {[%clk 0:00:04]} 52. Nf6 {[%clk 0:00:10]}  Ng6 {[%clk 0:00:03]} 53. Ne8 {[%clk 0:00:09]}  Nxe5 {[%clk 0:00:03]} 54. Nxc7 {[%clk 0:00:10]}  Nf3+ {[%clk 0:00:03]} 55. Ke3 {[%clk 0:00:09]}  Nh2 {[%clk 0:00:03]} 56. Ne8 {[%clk 0:00:09]}  Ng4+ {[%clk 0:00:03]} 57. Kd4 {[%clk 0:00:08]}  Nf6 {[%clk 0:00:02]} 58. Nxf6 {[%clk 0:00:07]}  Kxf6 {[%clk 0:00:01]} 59. c7 {[%clk 0:00:07]}  e5+ {[%clk 0:00:02]} 60. Ke4 {[%clk 0:00:07]}  Ke6 {[%clk 0:00:03]} 61. c8=Q+ {[%clk 0:00:07]} 1-0


[Site "https://www.chess.com"]

[Event "Titled Tuesday Blitz November 29 Late 2022"]
[White "chess50years"]
[Black "Petrovic, Aleksa"]
[BlackFideId "967629"]
[WhiteElo "2179"]
[BlackElo "2224"]
[Result "0-1"]
[Round "09"]
[TimeControl "180+1"]
[Date "2022.11.30"]
[WhiteClock "0:00:30"]
[BlackClock "0:00:19"]

1. d4 {[%clk 0:03:00]}  Nf6 {[%clk 0:02:59]} 2. c4 {[%clk 0:03:00]}  e6 {[%clk 0:02:59]} 3. Nc3 {[%clk 0:03:00]}  Bb4 {[%clk 0:02:58]} 4. Bg5 {[%clk 0:03:00]}  h6 {[%clk 0:02:56]} 5. Bxf6 {[%clk 0:03:00]}  Bxc3+ {[%clk 0:02:56]} 6. bxc3 {[%clk 0:02:58]}  Qxf6 {[%clk 0:02:56]} 7. e3 {[%clk 0:02:55]}  b6 {[%clk 0:02:52]} 8. Nf3 {[%clk 0:02:50]}  Bb7 {[%clk 0:02:51]} 9. Be2 {[%clk 0:02:50]}  O-O {[%clk 0:02:50]} 10. O-O {[%clk 0:02:45]}  d6 {[%clk 0:02:50]} 11. Nd2 {[%clk 0:02:44]}  Nd7 {[%clk 0:02:49]} 12. Bf3 {[%clk 0:02:43]}  Bxf3 {[%clk 0:02:48]} 13. Qxf3 {[%clk 0:02:40]}  Qxf3 {[%clk 0:02:46]} 14. Nxf3 {[%clk 0:02:41]}  c5 {[%clk 0:02:39]} 15. a4 {[%clk 0:02:41]}  Rfc8 {[%clk 0:02:36]} 16. Nd2 {[%clk 0:02:38]}  cxd4 {[%clk 0:02:32]} 17. cxd4 {[%clk 0:02:39]}  Nf6 {[%clk 0:02:26]} 18. a5 {[%clk 0:02:36]}  d5 {[%clk 0:02:22]} 19. Rfc1 {[%clk 0:02:22]}  dxc4 {[%clk 0:02:16]} 20. Nxc4 {[%clk 0:02:17]}  bxa5 {[%clk 0:01:58]} 21. Nxa5 {[%clk 0:02:15]}  Nd5 {[%clk 0:01:56]} 22. g3 {[%clk 0:02:10]}  Kf8 {[%clk 0:01:51]} 23. Kf1 {[%clk 0:02:09]}  Ke7 {[%clk 0:01:50]} 24. Nc6+ {[%clk 0:02:06]}  Kd6 {[%clk 0:01:50]} 25. Ne5 {[%clk 0:01:52]}  f6 {[%clk 0:01:32]} 26. Nd3 {[%clk 0:01:52]}  Rxc1+ {[%clk 0:01:28]} 27. Rxc1 {[%clk 0:01:38]}  a5 {[%clk 0:01:28]} 28. Ra1 {[%clk 0:01:32]}  a4 {[%clk 0:01:24]} 29. Ra3 {[%clk 0:01:28]}  Nb6 {[%clk 0:01:23]} 30. Nc5 {[%clk 0:01:24]}  Kc6 {[%clk 0:01:18]} 31. Nxe6 {[%clk 0:01:21]}  Nc4 {[%clk 0:01:17]} 32. Ra2 {[%clk 0:01:17]}  a3 {[%clk 0:01:09]} 33. Nc5 {[%clk 0:01:13]}  Kb5 {[%clk 0:01:08]} 34. Nd3 {[%clk 0:01:12]}  Ka4 {[%clk 0:01:01]} 35. Nc5+ {[%clk 0:01:09]}  Kb4 {[%clk 0:01:00]} 36. Ke2 {[%clk 0:01:04]}  Na5 {[%clk 0:00:44]} 37. Kd3 {[%clk 0:00:59]}  Nb3 {[%clk 0:00:42]} 38. Kc2 {[%clk 0:00:49]}  Nxc5 {[%clk 0:00:40]} 39. dxc5 {[%clk 0:00:49]}  Kxc5 {[%clk 0:00:39]} 40. Kb3 {[%clk 0:00:48]}  Kd5 {[%clk 0:00:39]} 41. Rxa3 {[%clk 0:00:47]}  Rxa3+ {[%clk 0:00:39]} 42. Kxa3 {[%clk 0:00:47]}  Ke4 {[%clk 0:00:40]} 43. Kb3 {[%clk 0:00:48]}  Kf3 {[%clk 0:00:40]} 44. Kc4 {[%clk 0:00:46]}  Kxf2 {[%clk 0:00:40]} 45. Kd4 {[%clk 0:00:47]}  Kg2 {[%clk 0:00:40]} 46. Ke4 {[%clk 0:00:48]}  Kxh2 {[%clk 0:00:40]} 47. g4 {[%clk 0:00:46]}  Kg3 {[%clk 0:00:40]} 48. Kf5 {[%clk 0:00:46]}  Kf3 {[%clk 0:00:30]} 49. e4 {[%clk 0:00:45]}  g5 {[%clk 0:00:27]} 50. Kxf6 {[%clk 0:00:34]}  Kxe4 {[%clk 0:00:26]} 51. Kg6 {[%clk 0:00:35]}  Kf3 {[%clk 0:00:20]} 52. Kh5 {[%clk 0:00:31]}  Kf4 {[%clk 0:00:19]} 53. Kxh6 {[%clk 0:00:30]}  Kxg4 {[%clk 0:00:19]} 0-1


[Site "https://www.chess.com"]

[Event "Titled Tuesday Blitz November 29 Late 2022"]
[White "Adewumi, Tanitoluwa"]
[Black "Arbunic Castro, Giovanna"]
[WhiteFideId "30966396"]
[BlackFideId "3400549"]
[WhiteElo "2534"]
[BlackElo "1924"]
[Result "1-0"]
[Round "10"]
[TimeControl "180+1"]
[Date "2022.11.30"]
[WhiteClock "0:00:04"]
[BlackClock "0:00:33"]

1. e4 {[%clk 0:03:00]}  g6 {[%clk 0:02:58]} 2. d4 {[%clk 0:03:00]}  Bg7 {[%clk 0:02:57]} 3. Nf3 {[%clk 0:02:58]}  c5 {[%clk 0:02:57]} 4. dxc5 {[%clk 0:02:57]}  Qa5+ {[%clk 0:02:56]} 5. Nc3 {[%clk 0:02:57]}  Qxc5 {[%clk 0:02:56]} 6. Be3 {[%clk 0:02:57]}  Qc7 {[%clk 0:02:55]} 7. Nd5 {[%clk 0:02:55]}  Qd8 {[%clk 0:02:55]} 8. Bd4 {[%clk 0:02:56]}  f6 {[%clk 0:02:44]} 9. Bc4 {[%clk 0:02:52]}  e6 {[%clk 0:02:43]} 10. Ne3 {[%clk 0:02:45]}  Nc6 {[%clk 0:02:41]} 11. Bc3 {[%clk 0:02:42]}  Nge7 {[%clk 0:02:40]} 12. O-O {[%clk 0:02:21]}  a6 {[%clk 0:02:38]} 13. Qd6 {[%clk 0:02:14]}  b5 {[%clk 0:02:35]} 14. Bb3 {[%clk 0:02:12]}  b4 {[%clk 0:02:34]} 15. Bxb4 {[%clk 0:02:07]}  Bf8 {[%clk 0:02:26]} 16. Bc3 {[%clk 0:01:56]}  Nd5 {[%clk 0:02:21]} 17. Qg3 {[%clk 0:01:52]}  Nxc3 {[%clk 0:02:20]} 18. bxc3 {[%clk 0:00:46]}  Be7 {[%clk 0:02:16]} 19. Rad1 {[%clk 0:00:44]}  d6 {[%clk 0:02:10]} 20. Nc4 {[%clk 0:00:33]}  d5 {[%clk 0:01:36]} 21. exd5 {[%clk 0:00:13]}  exd5 {[%clk 0:01:35]} 22. Rfe1 {[%clk 0:00:12]}  O-O {[%clk 0:01:29]} 23. Rxd5 {[%clk 0:00:11]}  Qe8 {[%clk 0:01:09]} 24. Nd6 {[%clk 0:00:08]}  Bxd6 {[%clk 0:01:02]} 25. Rxe8 {[%clk 0:00:06]}  Rxe8 {[%clk 0:01:01]} 26. Rxd6+ {[%clk 0:00:05]}  Kg7 {[%clk 0:00:58]} 27. Rxc6 {[%clk 0:00:05]}  Bb7 {[%clk 0:00:57]} 28. Rc7+ {[%clk 0:00:05]}  Kh8 {[%clk 0:00:54]} 29. Qh4 {[%clk 0:00:05]}  Re7 {[%clk 0:00:35]} 30. Rxe7 {[%clk 0:00:04]}  h5 {[%clk 0:00:33]} 31. Qxf6# {[%clk 0:00:04]} 1-0


[Site "https://www.chess.com"]

[Event "Titled Tuesday Blitz November 29 Late 2022"]
[White "Aghasiyev, Kamal"]
[Black "Jaracz, Pawel"]
[WhiteFideId "13402854"]
[BlackFideId "1102222"]
[WhiteElo "2341"]
[BlackElo "2459"]
[Result "1/2-1/2"]
[Round "10"]
[TimeControl "180+1"]
[Date "2022.11.30"]
[WhiteClock "0:00:06"]
[BlackClock "0:00:12"]

1. d4 {[%clk 0:03:00]}  d5 {[%clk 0:02:58]} 2. c4 {[%clk 0:03:00]}  e6 {[%clk 0:02:59]} 3. Nc3 {[%clk 0:02:58]}  Be7 {[%clk 0:02:58]} 4. Nf3 {[%clk 0:02:57]}  Nf6 {[%clk 0:02:57]} 5. Bg5 {[%clk 0:02:55]}  Nbd7 {[%clk 0:02:57]} 6. e3 {[%clk 0:02:55]}  O-O {[%clk 0:02:57]} 7. Bd3 {[%clk 0:02:55]}  h6 {[%clk 0:02:57]} 8. Bh4 {[%clk 0:02:54]}  c5 {[%clk 0:02:48]} 9. O-O {[%clk 0:02:52]}  cxd4 {[%clk 0:02:47]} 10. exd4 {[%clk 0:02:47]}  dxc4 {[%clk 0:02:47]} 11. Bxc4 {[%clk 0:02:47]}  Nb6 {[%clk 0:02:42]} 12. Bb3 {[%clk 0:02:34]}  Bd7 {[%clk 0:02:41]} 13. Qe2 {[%clk 0:02:31]}  Bc6 {[%clk 0:02:40]} 14. Rad1 {[%clk 0:02:31]}  Bd5 {[%clk 0:02:38]} 15. Nxd5 {[%clk 0:02:27]}  Nfxd5 {[%clk 0:02:36]} 16. Bg3 {[%clk 0:02:24]}  Bf6 {[%clk 0:02:32]} 17. Ne5 {[%clk 0:02:19]}  Ne7 {[%clk 0:02:18]} 18. Qe4 {[%clk 0:02:12]}  Nbd5 {[%clk 0:02:16]} 19. Nd3 {[%clk 0:02:04]}  Nf5 {[%clk 0:02:15]} 20. Be5 {[%clk 0:02:02]}  g6 {[%clk 0:01:42]} 21. Bxd5 {[%clk 0:01:58]}  exd5 {[%clk 0:01:42]} 22. Qf3 {[%clk 0:01:57]}  Bxe5 {[%clk 0:01:19]} 23. dxe5 {[%clk 0:01:47]}  Rc8 {[%clk 0:01:13]} 24. Rfe1 {[%clk 0:01:43]}  Nd4 {[%clk 0:01:05]} 25. Qh3 {[%clk 0:01:37]}  Qg5 {[%clk 0:00:57]} 26. f4 {[%clk 0:01:26]}  Qf5 {[%clk 0:00:37]} 27. Qxf5 {[%clk 0:01:13]}  Nxf5 {[%clk 0:00:37]} 28. Rc1 {[%clk 0:01:08]}  h5 {[%clk 0:00:30]} 29. Kf2 {[%clk 0:01:06]}  d4 {[%clk 0:00:29]} 30. Kf3 {[%clk 0:00:59]}  Rfe8 {[%clk 0:00:26]} 31. Rxc8 {[%clk 0:00:58]}  Rxc8 {[%clk 0:00:25]} 32. Rc1 {[%clk 0:00:59]}  Rxc1 {[%clk 0:00:24]} 33. Nxc1 {[%clk 0:00:59]}  Ne3 {[%clk 0:00:24]} 34. b3 {[%clk 0:00:46]}  f5 {[%clk 0:00:21]} 35. exf6 {[%clk 0:00:38]}  Kf7 {[%clk 0:00:21]} 36. Ne2 {[%clk 0:00:35]}  Nc2 {[%clk 0:00:17]} 37. Ke4 {[%clk 0:00:35]}  d3 {[%clk 0:00:14]} 38. Kxd3 {[%clk 0:00:26]}  Nb4+ {[%clk 0:00:14]} 39. Kc4 {[%clk 0:00:25]}  Nxa2 {[%clk 0:00:15]} 40. b4 {[%clk 0:00:25]}  Kxf6 {[%clk 0:00:13]} 41. b5 {[%clk 0:00:19]}  a5 {[%clk 0:00:10]} 42. bxa6 {[%clk 0:00:18]}  bxa6 {[%clk 0:00:11]} 43. Kb3 {[%clk 0:00:19]}  Kf5 {[%clk 0:00:11]} 44. Kxa2 {[%clk 0:00:17]}  Ke4 {[%clk 0:00:12]} 45. Kb3 {[%clk 0:00:10]}  Ke3 {[%clk 0:00:12]} 46. f5 {[%clk 0:00:10]}  gxf5 {[%clk 0:00:11]} 47. Ng3 {[%clk 0:00:10]}  Kf2 {[%clk 0:00:10]} 48. Nxf5 {[%clk 0:00:07]}  Kxg2 {[%clk 0:00:11]} 49. h4 {[%clk 0:00:07]}  Kf3 {[%clk 0:00:11]} 50. Ng7 {[%clk 0:00:04]}  Kg4 {[%clk 0:00:12]} 51. Nxh5 {[%clk 0:00:04]}  Kxh5 {[%clk 0:00:11]} 52. Kb4 {[%clk 0:00:04]}  Kxh4 {[%clk 0:00:12]} 53. Ka5 {[%clk 0:00:05]}  Kg4 {[%clk 0:00:12]} 54. Kxa6 {[%clk 0:00:06]} 1/2-1/2


[Site "https://www.chess.com"]

[Event "Titled Tuesday Blitz November 29 Late 2022"]
[White "Annaberdiyev, Babageldi"]
[Black "Abdyzhapar, Asylbek"]
[WhiteFideId "14000385"]
[BlackFideId "13800337"]
[WhiteElo "2332"]
[BlackElo "2323"]
[Result "1-0"]
[Round "10"]
[TimeControl "180+1"]
[Date "2022.11.30"]
[WhiteClock "0:00:13"]
[BlackClock "0:00:06"]

1. e4 {[%clk 0:03:00]}  e5 {[%clk 0:02:59]} 2. Nf3 {[%clk 0:03:00]}  Nc6 {[%clk 0:03:00]} 3. Bc4 {[%clk 0:02:59]}  Bc5 {[%clk 0:02:59]} 4. c3 {[%clk 0:03:00]}  d6 {[%clk 0:02:59]} 5. d4 {[%clk 0:02:59]}  exd4 {[%clk 0:02:57]} 6. cxd4 {[%clk 0:03:00]}  Bb4+ {[%clk 0:02:57]} 7. Nc3 {[%clk 0:02:59]}  Nf6 {[%clk 0:02:57]} 8. O-O {[%clk 0:02:50]}  O-O {[%clk 0:02:57]} 9. Nd5 {[%clk 0:02:44]}  Nxd5 {[%clk 0:02:56]} 10. exd5 {[%clk 0:02:45]}  Ne7 {[%clk 0:02:51]} 11. Qa4 {[%clk 0:02:41]}  c5 {[%clk 0:02:49]} 12. a3 {[%clk 0:02:39]}  Ba5 {[%clk 0:02:33]} 13. dxc5 {[%clk 0:02:37]}  dxc5 {[%clk 0:02:33]} 14. d6 {[%clk 0:02:36]}  Nc6 {[%clk 0:02:24]} 15. Bf4 {[%clk 0:02:32]}  a6 {[%clk 0:02:20]} 16. Bd5 {[%clk 0:02:29]}  Bd7 {[%clk 0:02:16]} 17. Qc2 {[%clk 0:02:19]}  h6 {[%clk 0:02:16]} 18. Bxh6 {[%clk 0:02:15]}  Qf6 {[%clk 0:02:09]} 19. Be3 {[%clk 0:02:13]}  Rac8 {[%clk 0:02:00]} 20. Rad1 {[%clk 0:01:56]}  Rfe8 {[%clk 0:01:55]} 21. Ng5 {[%clk 0:01:51]}  Bf5 {[%clk 0:01:44]} 22. Qa4 {[%clk 0:01:50]}  Rxe3 {[%clk 0:01:40]} 23. Bxf7+ {[%clk 0:01:41]}  Kf8 {[%clk 0:01:35]} 24. Qh4 {[%clk 0:01:40]}  Rh3 {[%clk 0:01:24]} 25. gxh3 {[%clk 0:01:37]}  Qh6 {[%clk 0:01:24]} 26. Qf4 {[%clk 0:01:33]}  Qf6 {[%clk 0:01:20]} 27. d7 {[%clk 0:01:24]}  Rd8 {[%clk 0:01:19]} 28. Rfe1 {[%clk 0:01:18]}  Bxe1 {[%clk 0:01:17]} 29. Rxe1 {[%clk 0:01:12]}  Ne7 {[%clk 0:01:06]} 30. Ba2 {[%clk 0:00:59]}  Ng6 {[%clk 0:00:53]} 31. Re8+ {[%clk 0:00:27]}  Rxe8 {[%clk 0:00:52]} 32. dxe8=Q+ {[%clk 0:00:28]}  Kxe8 {[%clk 0:00:51]} 33. Qb8+ {[%clk 0:00:29]}  Ke7 {[%clk 0:00:39]} 34. Qc7+ {[%clk 0:00:26]}  Bd7 {[%clk 0:00:30]} 35. Qxc5+ {[%clk 0:00:24]}  Kd8 {[%clk 0:00:28]} 36. Nf7+ {[%clk 0:00:20]}  Ke8 {[%clk 0:00:28]} 37. Qc7 {[%clk 0:00:16]}  Bc6 {[%clk 0:00:06]} 38. Qc8+ {[%clk 0:00:15]}  Ke7 {[%clk 0:00:06]} 39. Qd8# {[%clk 0:00:13]} 1-0


[Site "https://www.chess.com"]

[Event "Titled Tuesday Blitz November 29 Late 2022"]
[White "Bluebaum, Matthias"]
[Black "Kobo, Ori"]
[WhiteFideId "24651516"]
[BlackFideId "2812320"]
[WhiteElo "2633"]
[BlackElo "2447"]
[Result "1-0"]
[Round "10"]
[TimeControl "180+1"]
[Date "2022.11.30"]
[WhiteClock "0:00:29"]
[BlackClock "0:00:03"]

1. d4 {[%clk 0:03:00]}  Nf6 {[%clk 0:03:00]} 2. c4 {[%clk 0:03:01]}  g6 {[%clk 0:03:00]} 3. Nc3 {[%clk 0:03:02]}  Bg7 {[%clk 0:03:00]} 4. e4 {[%clk 0:03:02]}  d6 {[%clk 0:03:00]} 5. Nf3 {[%clk 0:03:03]}  O-O {[%clk 0:03:01]} 6. Be2 {[%clk 0:03:03]}  e5 {[%clk 0:03:00]} 7. Be3 {[%clk 0:03:04]}  exd4 {[%clk 0:02:58]} 8. Nxd4 {[%clk 0:03:05]}  Re8 {[%clk 0:02:58]} 9. f3 {[%clk 0:03:06]}  c6 {[%clk 0:02:59]} 10. Qd2 {[%clk 0:03:06]}  d5 {[%clk 0:02:56]} 11. exd5 {[%clk 0:03:07]}  cxd5 {[%clk 0:02:57]} 12. O-O {[%clk 0:03:07]}  Nc6 {[%clk 0:02:50]} 13. Rad1 {[%clk 0:03:08]}  Nxd4 {[%clk 0:02:39]} 14. Bxd4 {[%clk 0:03:09]}  dxc4 {[%clk 0:02:38]} 15. Bxc4 {[%clk 0:03:10]}  Be6 {[%clk 0:02:38]} 16. Bb5 {[%clk 0:03:10]}  Rf8 {[%clk 0:02:22]} 17. Qf2 {[%clk 0:03:09]}  Qc7 {[%clk 0:02:03]} 18. Bxa7 {[%clk 0:03:07]}  Nh5 {[%clk 0:01:43]} 19. Bb6 {[%clk 0:02:58]}  Qc8 {[%clk 0:01:39]} 20. a4 {[%clk 0:02:41]}  Bb3 {[%clk 0:01:33]} 21. Rd7 {[%clk 0:02:25]}  Bxc3 {[%clk 0:01:13]} 22. Rc7 {[%clk 0:02:25]}  Qe6 {[%clk 0:00:52]} 23. Rxc3 {[%clk 0:02:23]}  Bxa4 {[%clk 0:00:51]} 24. Bc4 {[%clk 0:02:23]}  Qd7 {[%clk 0:00:45]} 25. Rd3 {[%clk 0:02:20]}  Qc8 {[%clk 0:00:40]} 26. Rc1 {[%clk 0:02:10]}  Bc6 {[%clk 0:00:33]} 27. Qd4 {[%clk 0:02:07]}  Qf5 {[%clk 0:00:28]} 28. Re3 {[%clk 0:01:35]}  Rfe8 {[%clk 0:00:19]} 29. Rce1 {[%clk 0:01:26]}  Rxe3 {[%clk 0:00:18]} 30. Qxe3 {[%clk 0:01:27]}  Nf4 {[%clk 0:00:17]} 31. Bd4 {[%clk 0:01:17]}  Qg5 {[%clk 0:00:14]} 32. g3 {[%clk 0:01:18]}  Ne6 {[%clk 0:00:08]} 33. f4 {[%clk 0:01:02]}  Qf5 {[%clk 0:00:07]} 34. Bc3 {[%clk 0:00:56]}  h5 {[%clk 0:00:06]} 35. Bxe6 {[%clk 0:00:40]}  fxe6 {[%clk 0:00:07]} 36. Qxe6+ {[%clk 0:00:41]}  Qxe6 {[%clk 0:00:07]} 37. Rxe6 {[%clk 0:00:42]}  Be8 {[%clk 0:00:05]} 38. Re7 {[%clk 0:00:42]}  Bf7 {[%clk 0:00:03]} 39. Rxb7 {[%clk 0:00:41]}  Rd8 {[%clk 0:00:01]} 40. Kf2 {[%clk 0:00:41]}  Kf8 {[%clk 0:00:01]} 41. b4 {[%clk 0:00:39]}  Rd3 {[%clk 0:00:01]} 42. Be5 {[%clk 0:00:39]}  Rd2+ {[%clk 0:00:02]} 43. Ke3 {[%clk 0:00:39]}  Rxh2 {[%clk 0:00:02]} 44. b5 {[%clk 0:00:38]}  Rg2 {[%clk 0:00:02]} 45. f5 {[%clk 0:00:34]}  gxf5 {[%clk 0:00:03]} 46. b6 {[%clk 0:00:34]}  Rg1 {[%clk 0:00:03]} 47. Rxf7+ {[%clk 0:00:28]}  Kxf7 {[%clk 0:00:04]} 48. b7 {[%clk 0:00:29]}  Rb1 {[%clk 0:00:04]} 49. b8=Q {[%clk 0:00:29]}  Rxb8 {[%clk 0:00:04]} 50. Bxb8 {[%clk 0:00:30]}  Kg6 {[%clk 0:00:05]} 51. Kf4 {[%clk 0:00:30]}  Kf6 {[%clk 0:00:04]} 52. Bc7 {[%clk 0:00:29]}  Kg6 {[%clk 0:00:03]} 53. Bd8 {[%clk 0:00:29]} 1-0


[Site "https://www.chess.com"]